Cogmind - Beta 16 @@@ ROGUE MODE // 2025.11.11 @ 08:25:08 Player: Tereza Result: Destroyed by 5C-BEB(R) with Subdweller Laser Performance ------------- Evolutions (0) 0 Regions Visited (3) 600 Robots Destroyed (26) 130 Value Destroyed (789) 789 Prototype IDs (3) 60 Alien Tech Used (0) 0 Bonus (81) 81 TOTAL SCORE: 1660 Bonus ------- Follower Combat Kills 81 Cogmind --------- Core Integrity 0/250 Matter 288/300 Energy 194/200 System Corruption 2% Temperature Cool (6) Movement Treading (240) Ox1 Location -10/Subcaves Parts ------- > --- POWER (1) -------- Subdweller Power Source > --- PROPULSION (2) --- Light Treads Light Treads > --- UTILITY (2) ------ High-capacity Storage Unit Seismic Detector > --- WEAPON (2) ------- Particle Cannon Subdweller Machine Gun > --- INVENTORY (20) --- Light Treads Light Treads Light Treads Light Treads Light Treads Huge Storage Unit Small Matter Pod (50) Structural Scanner Improved Sensor Array Particle Cannon Particle Cannon Assault Rifle Battle Rifle Light Cannon Rocket Launcher Datajack Scrap Shield Fragment (49) Scrap Shield Fragment (49) Scrap Shield Fragment (47) Peak State ------------ > --- POWER ------------ Light Ion Engine > --- PROPULSION ------- Light Treads Light Treads > --- UTILITY ---------- High-capacity Storage Unit Seismic Detector > --- WEAPON ----------- Particle Cannon High-powered Shotgun > --- INVENTORY -------- Light Treads Light Treads Light Treads Light Treads Light Treads Light Treads Light Treads Light Treads Huge Storage Unit Small Matter Pod Structural Scanner Improved Sensor Array Particle Cannon Particle Cannon Assault Rifle Light Assault Rifle Light Cannon Light Cannon Rocket Launcher Datajack [Rating: 12] Favorites ----------- Power Light Ion Engine Engine Light Ion Engine Propulsion Light Treads Treads Light Treads Utility Seismic Detector Device Seismic Detector Storage High-capacity Storage Unit Weapon Light Assault Rifle Energy Cannon Particle Cannon Ballistic Gun Light Assault Rifle Ballistic Cannon Light Cannon Build | -11 -10 -10 -10 ------- Run | Yrd Mat Min Sub Slots Evolved . | . . . . Power . | . . . . Propulsion . | . . . . Utility . | . . . . Weapon . | . . . . Parts Attached 23 | 6 6 2 9 Power 3 | 1 . . 2 Engine 3 | 1 . . 2 Core . | . . . . Reactor . | . . . . Propulsion 8 | 2 3 . 3 Treads 8 | 2 3 . 3 Leg . | . . . . Wheel . | . . . . Hover . | . . . . Flight . | . . . . Utility 4 | 1 3 . . Device 1 | . 1 . . Storage 3 | 1 2 . . Processor . | . . . . Hackware . | . . . . Protection . | . . . . Artifact . | . . . . Weapon 8 | 2 . 2 4 Energy Gun . | . . . . Energy Cannon 1 | . . . 1 Ballistic Gun 6 | 2 . 2 2 Ballistic Cannon 1 | . . . 1 Launcher . | . . . . Special Weapon . | . . . . Impact Weapon . | . . . . Slashing Weapon . | . . . . Piercing Weapon . | . . . . Special Melee Weapon . | . . . . Unidentified Prototypes . | . . . . Parts Lost 5 | . . . 5 Power 1 | . . . 1 Propulsion 3 | . . . 3 Utility . | . . . . Weapon 1 | . . . 1 Highest Loss Streak 2 | . . . 2 To Critical Strikes 1 | . . . 1 Average Backups 17 | 4 15 20 18 Power . | . . . . Propulsion 6 | 2 5 8 7 Utility 3 | . 3 4 4 Weapon 6 | . 5 7 6 Tool/Special . | . . . . Unused Backups 22 | . 6 1 15 Power 2 | . 2 . . Propulsion 7 | . 3 . 4 Utility 4 | . . . 4 Weapon 8 | . 1 1 6 Tool/Special 1 | . . . 1 Average Slot Usage (%) 98 | . 96 100 98 Engine 13 | . 14 14 13 Treads 27 | . 28 28 27 Device 12 | . 10 14 14 Storage 14 | . 14 14 14 Energy Cannon 4 | . . . 12 Ballistic Gun 21 | . 28 28 10 Ballistic Cannon 1 | . . . 5 Peak Build Rating 12 | 6 9 11 12 Average Rating 9 | 5 8 9 11 On Entrance 6 | . 6 9 11 Avg Prop Armor Cover (%) . | . . . . Naked Turns . | . . . . Heaviest Build 54 | 10 46 48 54 Greatest Support 40 | 40 40 40 40 Greatest Overweight (x) 2 | 1 2 1 1 Average Overweight (x) . | . . 1 1 Largest Inventory Capacity 20 | 8 20 20 20 Average Capacity 19 | 7 17 20 20 Most Carried 20 | 6 20 20 20 Average Carried 18 | 4 15 20 19 Final Capacity 20 | 8 20 20 20 Final Carried 20 | 6 20 20 19 Class Distribution -------------------- 100% | Mutant Dominant Class ---------------- Mutant | -10/Materials Mutant | -10/Mines Mutant | -10/Subcaves Resources | -11 -10 -10 -10 ----------- Run | Yrd Mat Min Sub Matter Collected 808 | 269 193 46 300 Remotely . | . . . . Salvage Created 1003 | 91 382 16 514 Parts 64 | 4 20 5 35 Haulers Intercepted 2 | . 2 . . Recyclers Shooed 1 | . . 1 . Parts Field Recycled . | . . . . Retrieved Matter . | . . . . Parts Self-Destructed 11 | . . . 11 Prevented . | . . . . Parts Restored . | . . . . Kills | -11 -10 -10 -10 ------- Run | Yrd Mat Min Sub Combat Hostiles Destroyed 18 | . 6 . 12 Guns 9 | . 6 . 3 Cannons 9 | . . . 9 Classes Destroyed 8 | 2 3 1 2 Worker 2 | . . 2 . Tunneler 1 | 1 . . . Hauler 2 | . 2 . . Recycler 1 | 1 . . . Watcher 2 | . 2 . . Grunt 6 | . 6 . . Sentry 1 | . . . 1 Subdweller 11 | . . . 11 Best Kill Streak 2 | 2 2 1 2 Combat Bots Only 2 | . 2 . 2 Max Kills in Single Turn 1 | 1 1 1 1 Gunslinging . | . . . . Exploded . | . . . . Melee . | . . . . Uniques/NPCs Destroyed . | . . . . Combat | -11 -10 -10 -10 -------- Run | Yrd Mat Min Sub Hostile Shots Fired 106 | . 35 2 69 Missed 35 | . 12 . 23 Hits 71 | . 23 2 46 Projectile 71 | . 23 2 46 Critical Strikes 4 | . . . 4 Damage Taken 1374 | . 267 57 1050 Core 254 | . 30 13 211 Absorbed by Shields . | . . . . Core Remaining (%) 100 | 100 . . . Volleys Fired 116 | 9 43 . 64 Largest 2 | 2 2 . 2 Hottest 98 | 40 40 . 98 Shots Fired 215 | 18 86 1 110 Gun 135 | 18 86 1 30 Cannon 80 | . . . 80 Launcher . | . . . . Special . | . . . . Kinetic 156 | 18 86 1 51 Thermal 59 | . . . 59 Explosive . | . . . . Electromagnetic . | . . . . Robot Hit Streak 12 | 10 12 1 7 Robot Miss Streak 3 | 2 3 1 1 Penetration Max . | . . . . Secondary Targets 1 | . 1 . . Max Gunslinging Chain 1 | . 1 . . Shots Hit Robots 138 | 14 54 1 69 Core Hits 59 | 5 25 3 26 Critical Kills 1 | . 1 . . Critical Parts Destroyed . | . . . . Critical Strikes 2 | . 1 . 1 Destroy 1 | . 1 . . Blast 1 | . . . 1 Melee Attacks . | . . . . Impact . | . . . . Slashing . | . . . . Piercing . | . . . . Sneak Attacks . | . . . . Combat Hostiles . | . . . . Follow-up Attacks . | . . . . Damage Inflicted 1902 | 134 435 48 1285 Guns 1008 | 134 425 16 433 Cannons 852 | . . . 852 Explosions . | . . . . Melee . | . . . . Ramming 42 | . 10 32 . Kinetic 1285 | 134 425 16 710 Thermal 575 | . . . 575 Explosive . | . . . . Electromagnetic . | . . . . Impact . | . . . . Slashing . | . . . . Piercing . | . . . . Highest Corruption 2 | . 2 2 2 Average Corruption 1 | . 1 2 2 Corruption Purged . | . . . . Corruption Blocked . | . . . . Effects 47 | . 3 21 23 Message Errors 9 | . 1 3 5 Matter Fused 12 | . 1 2 9 Heat Flow Errors 8 | . . 5 3 Energy Discharges 5 | . . 1 4 Data Loss (minor) 8 | . 1 6 1 Data Loss (major) 2 | . . 2 . Misfires 2 | . . 1 1 Alerts 1 | . . 1 . Overload Shots . | . . . . Overflow Damage . | . . . . Projectiles . | . . . . Explosions . | . . . . Melee . | . . . . Knockbacks 6 | . . . 6 Impact . | . . . . Kinetic 6 | . . . 6 Secondary . | . . . . Self-Inflicted Damage . | . . . . Shots . | . . . . Rammed 9 | . 2 7 . Targets Rammed 10 | . 2 8 . Kicked . | . . . . Crushed 1 | . . 1 . Highest Temperature 296 | . 18 278 296 Average Temperature 75 | . 9 105 93 Received Heat Transfer 777 | . 186 . 591 Effects 3 | . . . 3 Interference 3 | . . . 3 Siege Activations . | . . . . Martial Activations . | . . . . Shielding Activations . | . . . . Robots Disrupted . | . . . . Combat Hostiles . | . . . . Robots Corrupted . | . . . . Combat Hostiles . | . . . . Parts Fried . | . . . . Impact Corruptions . | . . . . Robots Melted . | . . . . Combat Hostiles . | . . . . Parts Melted 1 | . . . 1 Heat Transferred 1036 | . . . 1036 Parts Sabotaged . | . . . . Parts Stolen . | . . . . Parts Stripped . | . . . . Power Chain Reactions . | . . . . Alert | -11 -10 -10 -10 ------- Run | Yrd Mat Min Sub Maximum Alert Level . | . . . . Low Security (%) 100 | 100 100 100 . Level 1 . | . . . . Level 2 . | . . . . Level 3 . | . . . . Level 4 . | . . . . Level 5 . | . . . . High Security . | . . . . Max Security . | . . . . Peak Influence 93 | 10 50 93 . Initial . | . . . . Average 7 | 1 7 6 . Influence Increases 424 | 10 227 111 76 Destroy 0b10 Robot/C 240 | . 120 60 60 Destroy 0b10 Robot/NC 45 | 10 20 15 . Destroy Leader 58 | . 38 10 10 Allied During Kill 17 | . . 11 6 Trap Triggered on 0b10 30 | . 30 . . Successful Hack 4 | . 4 . . Disable Machine 15 | . . 15 . Lose Combat Pursuer 15 | . 15 . . Influence Decreases 424 | 10 224 114 76 Entered New Map 3 | . . 3 . Time Decay 385 | 10 224 111 40 Lost Ally 36 | . . . 36 Squads Dispatched . | . . . . Investigation . | . . . . Extermination . | . . . . Reinforcement . | . . . . Assault . | . . . . Garrison . | . . . . Intercept . | . . . . Searches Triggered . | . . . . Construction Impeded . | . . . . Haulers Reinforced . | . . . . Active Scanning Responses . | . . . . Cargo Convoy Interrupts . | . . . . Stealth | -11 -10 -10 -10 --------- Run | Yrd Mat Min Sub Distress Signals . | . . . . Communications Jammed . | . . . . Distress Signals . | . . . . Times Spotted 33 | . 17 2 14 Peak Tracking Total 2 | . 2 2 2 Tactical Retreats 1 | . 1 . . Traps | -11 -10 -10 -10 ------- Run | Yrd Mat Min Sub Traps Triggered 5 | . 3 . 2 Indirectly . | . . . . Trap Hack Attempts . | . . . . Triggered . | . . . . Disarmed . | . . . . Reprogrammed 11 | . 11 . . Reused 3 | . 3 . . Traps Extracted . | . . . . Installed 4 | . . 4 . Triggered 3 | . 3 . . Machines | -11 -10 -10 -10 ---------- Run | Yrd Mat Min Sub Machines Disabled 1 | . . 1 . Max in Single Turn . | . . . . Machines Repaired . | . . . . Machines Dismantled . | . . . . Machines Sabotaged . | . . . . Overloaded Fab Kills . | . . . . Hacking | -11 -10 -10 -10 --------- Run | Yrd Mat Min Sub Machines Accessed 10 | . 9 1 . Terminals 8 | . 8 . . Fabricators . | . . . . Repair Stations . | . . . . Recycling Units 1 | . 1 . . Scanalyzers . | . . . . Garrison Access . | . . . . Total Hacks 28 | . 27 1 . Successful 14 | . 13 1 . Failed 13 | . 13 . . Catastrophic . | . . . . Database Lockouts 1 | . 1 . . Manual 15 | . 15 . . Terminals 25 | . 25 . . Fabricators . | . . . . Repair Stations . | . . . . Recycling Units 2 | . 2 . . Scanalyzers . | . . . . Garrison Access . | . . . . Terminal Hacks 8 | . 7 1 . Robot Analysis 2 | . 2 . . Prototype ID Bank 2 | . 2 . . Open Door 1 | . . 1 . Locate Traps 1 | . 1 . . Reprogram Traps 2 | . 2 . . Fabricator Hacks . | . . . . Repair Station Hacks . | . . . . Recycling Unit Hacks 2 | . 2 . . Report Inventory 1 | . 1 . . Retrieve Components 1 | . 1 . . Scanalyzer . | . . . . Garrison Access Hacks . | . . . . Unauthorized Hacks 4 | . 4 . . Terminals 4 | . 4 . . Botnet 3 | . 3 . . Operators 1 | . 1 . . Fabricators . | . . . . Repair Stations . | . . . . Recycling Units . | . . . . Scanalyzers . | . . . . Garrison Access . | . . . . Data Cores Recovered . | . . . . Used . | . . . . Hacking Detections 7 | . 7 . . Full Trace Events . | . . . . Feedback Events . | . . . . Feedback Blocked . | . . . . Robot Schematics Acquired . | . . . . Robots Built . | . . . . Authchips . | . . . . Time . | . . . . Total Robot Build Rating . | . . . . Part Schematics Acquired . | . . . . Parts Built . | . . . . Authchips . | . . . . Time . | . . . . Total Part Build Rating . | . . . . Part Studies Acquired . | . . . . Parts Repaired . | . . . . Time . | . . . . Parts Recycled . | . . . . Recycled Matter . | . . . . Retrieved Matter . | . . . . Retrieved Components 3 | . 3 . . Parts Scanalyzed . | . . . . Part Schematics Acquired . | . . . . Parts Damaged . | . . . . Bothacking | -11 -10 -10 -10 ------------ Run | Yrd Mat Min Sub Used RIF Installer . | . . . . Robots Hacked . | . . . . Non-combat . | . . . . Combat . | . . . . Robot Hacks Applied . | . . . . Relay Couplers Released . | . . . . Fabnet Peak Effective % . | . . . . Robots Rewired . | . . . . Allies Hacked . | . . . . Hacks Repelled . | . . . . Allies | -11 -10 -10 -10 -------- Run | Yrd Mat Min Sub Total Allies 3 | . . 3 . Largest Group 3 | . . 3 3 Highest-Rated Group 40 | . . 40 40 Highest-Rated Ally 16 | . . 16 16 Total Orders . | . . . . Ally Attacks 31 | . . 11 20 Total Damage 252 | . . 92 160 Kills 7 | . . 4 3 Allies Corrupted . | . . . . Allies Melted . | . . . . Intel | -11 -10 -10 -10 ------- Run | Yrd Mat Min Sub Active Infowar (turns) 4729 | . 1194 1695 1840 Seismic 4729 | . 1194 1695 1840 Robot Analysis Total 2 | . 2 . . Derelict Logs Recovered 4 | . . 2 2 Drone Launches . | . . . . Drone Recoveries . | . . . . Exploration | -11 -10 -10 -10 ------------- Run | Yrd Mat Min Sub Turns Passed 5258 | 98 1607 1695 1858 Spaces Moved 2082 | 41 679 672 690 Core 6 | 6 . . . Treads 2076 | 35 679 672 690 Legs . | . . . . Wheels . | . . . . Hover . | . . . . Flight . | . . . . Fastest Speed 50 | 50 160 240 240 Average Speed 226 | 147 205 240 240 Slowest Speed 320 | 160 320 240 240 Overloaded Moves . | . . . . Propulsion Burnouts . | . . . . Robots Hopped . | . . . . Potential Cave-ins . | . . . . Cave-ins Triggered . | . . . . Exploration Rate (%) 63 | 5 98 100 49 Regions Visited 3 Branch Regions 2 Pre-discovered Areas 2 | . . 1 1 Known Exits Taken . | . . . . Unknown Exits Taken 3 | 1 1 1 . Scrap Searched 6 | . . 1 5 Spaces Dug 3 | . . . 3 Terrain Destroyed 5 | . . . 5 Melee . | . . . . Projectile 5 | . . . 5 AOE . | . . . . Terrain Rammed . | . . . . Walls Destroyed . | . . . . Machines Disabled . | . . . . Actions | -11 -10 -10 -10 --------- Run | Yrd Mat Min Sub Total 2421 | 61 828 746 786 Wait 133 | . 65 56 12 Move 2079 | 40 678 671 690 Hop . | . . . . Pick Up 35 | 6 21 2 6 Fast Attach 11 | 6 3 . 2 Attach 5 | . 1 . 4 Detach 1 | . 1 . . Swap 9 | . 4 2 3 Drop 18 | . 10 3 5 Fire 116 | 9 43 . 64 Melee . | . . . . Ram . | . . . . Kick . | . . . . Crush 10 | . 2 8 . Escape Stasis . | . . . . Rewire . | . . . . Trap 4 | . . 4 . Miscellaneous . | . . . . Route ------- -11/Scrapyard -10/Materials (discovered 6 exits: *Mat x3 / *Min x2 / [*Sub]) -10/Mines (discovered 3 exits: *Mat x2 / [*Sub]) -10/Subcaves (discovered 1 exit: [*Mat]) History --------- Turn | Location | Event 25 | -11/Scrapyard | Discovered new exit (range 15) 99 | -11/Scrapyard | Entered Materials 317 | -10/Materials | Build established: Mutant 377 | -10/Materials | Discovered new exit (range 15) 600 | -10/Materials | Discovered new exit (range 12) 722 | -10/Materials | Central database locked down 794 | -10/Materials | Discovered new exit (range 12) 1148 | -10/Materials | Discovered new exit (range 15) 1179 | -10/Materials | Discovered new exit (range 13) 1427 | -10/Materials | Discovered new exit (range 7) 1706 | -10/Materials | Entered Mines 1819 | -10/Mines | Discovered new exit (range 8) 1965 | -10/Mines | Received a Rocket Launcher from a helpful Derelict 2108 | -10/Mines | Assisted by bots powering up and referring to "LRC-V3" 2240 | -10/Mines | Discovered new exit (range 10) 2467 | -10/Mines | Identified exit to Materials 2501 | -10/Mines | Met a Derelict who couldn't figure out how to use a Trap Extractor 2720 | -10/Mines | Found a hidden stash of uninstalled traps 3401 | -10/Mines | Entered Subcaves 3401 | -10/Subcaves | Accompanied by 3 allies 3402 | -10/Subcaves | Approached by a straggling Scientist 3409 | -10/Subcaves | Learned location of Zion (-7) 3621 | -10/Subcaves | Learned 4 Materials zone layouts 3867 | -10/Subcaves | Shifting Twisted Machinery released Mak. Kinetic Plating 4346 | -10/Subcaves | Discovered new exit (range 5) 4423 | -10/Subcaves | Shifting Twisted Machinery released Sub. Power Source 4670 | -10/Subcaves | Shifting Twisted Machinery released Sub. Beam Cannon 5030 | -10/Subcaves | Core integrity fell below 50% 5256 | -10/Subcaves | Core integrity fell below 20% 5259 | -10/Subcaves | Destroyed by 5C-BEB(R) with Subdweller Laser Last Messages --------------- Gun. 04807_ /:SXZY Q |M1 A I=7FTKHI 7NW J=J>KWYI4|50 04881_ /KM5DVMBGVE#V5FY4DZC 3ZQXS9&=|LDC= 04928_ System corrupted: Component data lost. 04947_ System corrupted: Heat flow error (+194). 04994_ System corrupted: Heat flow error (+295). 05024_ Triggered Piercing Trap. 05024_ Spikes shoot up from the floor. 05029_ Triggered Piercing Trap. 05029_ Spikes shoot up from the floor. 05029_ Critical hit (Impale). 05049_ 0A-FXB(R) destroyed. 05059_ IE-929(R) affixes Scrap Shield Fragment to Scrap Shield. 05060_ IE-929(R) destroyed. 05073_ Dropped Battle Rifle. 05074_ Acquired 28 matter. 05182_ H0-722(R) destroyed. 05195_ Acquired 6 matter. 05253_ Lgt. Treads destroyed. Map ----- +----------------------------------------------------+ | ?????????????????????????????????????????????????? | | ?????????????????????????????????????????????????? | | ?????????????????????????????????????????????????? | | ?????????????????????????????????????????????????? | | ?????????????????????????????????????????????????? | | ?????????????????????????????????????????????????? | | ###??????????????????????????????????????????????? | | # ##?????????????????????????????????????????????? | | #?????????????????????????????????????????????? | | #?????????????????????????????????????????????? | | #?????????????????????????????????????????????? | | ##?????????????????????????????????????????????? | | #??????????????????????????????????????????????? | | #??????????????????????????????????????????????? | | ###??????????????????????????????????????????????? | | #??????????????????????????????????? ????????????? | | ???????????????????????????? ?? ????????????? | | ???????????????????????????? #?????????????? | | ???????????????????????????# ##????????????? | | ?????????????????????????## #????????????? | | ?????????????????????????#"""" ?????????????? | | #??????????????????#######"""" ??????????????? | | ###???????????????##"""""" #????????????????? | | ##??????????????#""""" #????????????????? | | ##?????????????# """ R #?????????????????? | | ###???????????# "" @ """#??????????????????? | | ## #??????###### "" #??????????????????? | | ?## #?????## ## "" " ##??????????????????? | | ### #?????#" ###"" " ###???????????????????? | | #?????#" #### "####??????????????????? | | #####?#" #?# """" #####??????????????? | | ## ###" ### """" #??????????????? | | " #" """" #???????????????? | | " !%& " " #????????????????? | | " " *=[ " #?????????????????? | | " ## ### " ##?????????????????? | | " "### #?### ### ###??????????????????? | | " " ##" #???####?####????????????????????? | | " "###" ####????????????????????????????????? | | " ######???????????????????????????????????? | | " #????????????????????????????????????????? | | " #????????????????????????????????????????? | | " " #????????????????????????????????????????? | | "" ####????????????????????????????????????????? | | # " ##?????#????????????????????????????????????? | | #""" "##?? #????????????????????????????????????? | | " " ## "#????????????????????????????????????? | | " "#????????????????????????????????????? | | " "#????????????????????????????????????? | | " ########????????????????????????????????????? | +----------------------------------------------------+ Best States ------------- Heat Dissipation 25 Energy Generation 15 Energy Capacity 200 Matter Stores 300 Matter Capacity 300 Sight Range 16 Terrain Scan Density 10 Evasion (%) 40 Recoil Reduction 2 Item Schematics ----------------- None Robot Schematics ------------------ None Fabricated ------------ Nothing Repaired ---------- Nothing Studied --------- None Alien Tech Used ----------------- None Achievements -------------- None Challenges ------------ None Game ------ Seed AntimatterMetafiberChainsaw Manual? 0 Play Time 00:20:36 Cumulative 220.6 hours Start 2025.11.11 @ 08:03:37 End 2025.11.11 @ 08:25:08 Sessions 1 Manual Loads 0 Difficulty Rogue Special Mode None Game No. 272 Rogue 272 Adventurer 0 Explorer 0 Win Type - Total 3 Types 3/0/0/0/0/0/0/0/0/0 Lore% 75 Gallery% 57 Achievement% 41 Wizard Run 0 Options --------- Layout 1 ASCII 0 Keyboard 1 Movement Numpad Keybinds 0 Fullscreen 2 Font 24/Smallcaps Map View 50x35 Zoom Use 0% Tactical HUD 1 Map Filters NONE Filters NONE Steam 1 RUN: 3f47dece-64f7-4f16-9e44-57308cff20bf